fUSD/lending_fUSD_20260606
["ID","MTS","AMOUNT","RATE_DAILY","PERIOD"]
[424302522,1780758641000,-400.00000001,0.000171,2]
[424302552,1780758641000,-166.66,0.0001749,2]
[424302501,1780758641000,-2017.01286119,0.0001679,2]
[424302549,1780758641000,-587.48634544,0.0001741,2]
[424302589,1780758641000,-151.0,0.00017751,2]
[424302592,1780758641000,-151.0,0.00017751,2]
[424302591,1780758641000,-151.0,0.00017751,2]
[424302590,1780758641000,-500.0,0.00017751,2]
[424302584,1780758641000,-500.0,0.00017751,2]
[424302595,1780758641000,-151.0,0.00017751,2]
[424302593,1780758641000,-500.0,0.00017751,2]
[424302594,1780758641000,-151.0,0.00017751,2]
[424302597,1780758641000,-151.0,0.00017751,2]
[424302596,1780758641000,-500.0,0.00017751,2]
[424302607,1780758641000,-150.0,0.00017863,2]
[424302608,1780758641000,-200.0,0.00017863,2]
[424302599,1780758641000,-151.0,0.00017751,2]
[424302598,1780758641000,-500.0,0.00017751,2]
[424302602,1780758641000,-151.0,0.00017751,2]
[424302606,1780758641000,-500.0,0.00017781,2]
[424302603,1780758641000,-151.0,0.00017751,2]
[424302600,1780758641000,-151.0,0.00017751,2]
[424302601,1780758641000,-500.0,0.00017751,2]
[424302604,1780758641000,-500.0,0.00017751,2]
[424302605,1780758641000,-1125.0,0.00017766,2]
[424302609,1780758641000,-536.2049552,0.00017895,2]
[424302611,1780758641000,-165.95620521,0.00018,2]
[424302610,1780758641000,-2890.90467675,0.000179,2]
[424302613,1780758641000,-440.16689882,0.00018,2]
[424302614,1780758641000,-350.0,0.00018,2]
[424302550,1780758641000,-536.2049552,0.00017436,2]
[424302587,1780758641000,-500.0,0.00017751,2]
[424302588,1780758641000,-151.0,0.00017751,2]
[424302612,1780758641000,-360.66532224,0.00018,2]
[424302585,1780758641000,-151.0,0.00017751,2]
[424302586,1780758641000,-151.0,0.00017751,2]
[424302557,1780758641000,-536.2049552,0.00017721,2]
[424302565,1780758641000,-151.0,0.00017751,2]
[424302548,1780758641000,-2890.90467675,0.000174,2]
[424302562,1780758641000,-151.0,0.00017751,2]
[424302559,1780758641000,-536.2049552,0.00017744,2]
[424302558,1780758641000,-587.48634544,0.00017742,2]
[424302563,1780758641000,-200.0,0.00017751,2]
[424302560,1780758641000,-151.0,0.00017751,2]
[424302564,1780758641000,-151.0,0.00017751,2]
[424302566,1780758641000,-151.0,0.00017751,2]
[424302561,1780758641000,-151.0,0.00017751,2]
[424302567,1780758641000,-151.0,0.00017751,2]
[424302569,1780758641000,-151.0,0.00017751,2]
[424302568,1780758641000,-151.0,0.00017751,2]
[424302571,1780758641000,-151.0,0.00017751,2]
[424302579,1780758641000,-151.0,0.00017751,2]
[424302577,1780758641000,-151.0,0.00017751,2]
[424302578,1780758641000,-500.0,0.00017751,2]
[424302575,1780758641000,-151.0,0.00017751,2]
[424302576,1780758641000,-151.0,0.00017751,2]
[424302574,1780758641000,-500.0,0.00017751,2]
[424302572,1780758641000,-2080.17592889,0.00017751,2]
[424302582,1780758641000,-151.0,0.00017751,2]
[424302573,1780758641000,-151.0,0.00017751,2]
[424302580,1780758641000,-151.0,0.00017751,2]
[424302583,1780758641000,-151.0,0.00017751,2]
[424302581,1780758641000,-500.0,0.00017751,2]
[424302570,1780758641000,-151.0,0.00017751,2]
[424302659,1780758642000,-7458.43741178,0.00018997,2]
[424302641,1780758642000,-250.0,0.00018836,2]
[424302647,1780758642000,-167.462,0.00018836,2]
[424302646,1780758642000,-250.0,0.00018836,2]
[424302648,1780758642000,-189.0,0.00018836,2]
[424302657,1780758642000,-200.0,0.00018847,2]
[424302656,1780758642000,-151.0,0.00018847,2]
[424302658,1780758642000,-2236.95670847,0.00018847,2]
[424302661,1780758642000,-1093.96,0.00019,2]
[424302643,1780758642000,-250.0,0.00018836,2]
[424302645,1780758642000,-195.226,0.00018836,2]
[424302654,1780758642000,-382.0,0.00018836,2]
[424302660,1780758642000,-3541.00338417,0.00019,2]
[424302651,1780758642000,-1358.0,0.00018836,2]
[424302650,1780758642000,-3554.0,0.00018836,2]
[424302653,1780758642000,-1274.0,0.00018836,2]
[424302655,1780758642000,-1227.0,0.00018836,2]
[424302663,1780758642000,-500.0,0.00019041,2]
[424302662,1780758642000,-543.58357826,0.00019025,2]
[424302669,1780758642000,-500.0,0.00019591,2]
[424302664,1780758642000,-800.0,0.0001907,2]
[424302644,1780758642000,-246.38,0.00018836,2]
[424302649,1780758642000,-247.366,0.00018836,2]
[424302639,1780758642000,-247.689,0.00018836,2]
[424302629,1780758642000,-440.16689882,0.000184,2]
[424302637,1780758642000,-208.631,0.00018836,2]
[424302665,1780758642000,-839.06718577,0.00019178,2]
[424302618,1780758642000,-165.95620521,0.000182,2]
[424302620,1780758642000,-440.16689882,0.000182,2]
[424302615,1780758642000,-3642.0,0.00018025,2]
[424302617,1780758642000,-2890.90467675,0.000181,2]
[424302616,1780758642000,-419.0,0.00018025,2]
[424302619,1780758642000,-360.66532224,0.000182,2]
[424302622,1780758642000,-151.0,0.00018299,2]
[424302632,1780758642000,-440.16689882,0.000185,2]
[424302621,1780758642000,-500.0,0.00018233,2]
[424302633,1780758642000,-360.66532224,0.000187,2]
[424302636,1780758642000,-220.0,0.00018836,2]
[424302623,1780758642000,-200.0,0.00018299,2]
[424302628,1780758642000,-360.66532224,0.000184,2]
[424302624,1780758642000,-2157.14243826,0.00018299,2]
[424302631,1780758642000,-360.66532224,0.000185,2]
[424302630,1780758642000,-4204.8,0.0001841,2]
[424302625,1780758642000,-500.0,0.00018329,2]
[424302627,1780758642000,-165.95620521,0.000184,2]
[424302634,1780758642000,-440.16689882,0.000187,2]
[424302642,1780758642000,-167.5,0.00018836,2]
[424302638,1780758642000,-250.0,0.00018836,2]
[424302640,1780758642000,-242.103,0.00018836,2]
[424302635,1780758642000,-1125.0,0.00018701,2]
[424302626,1780758642000,-194.8181575,0.00018389,2]
[424302667,1780758642000,-200.0,0.00019395,2]
[424302668,1780758642000,-2319.72410669,0.00019395,2]
[424302670,1780758642000,-500.0,0.00019591,2]
[424302696,1780758642000,-948.0,0.0002,2]
[424302704,1780758642000,-150.0,0.0002058,2]
[424302703,1780758642000,-2494.55939288,0.00020491,2]
[424302702,1780758642000,-200.0,0.00020491,2]
[424302700,1780758642000,-651.52903792,0.000204,2]
[424302699,1780758642000,-4204.8,0.00020381,2]
[424302701,1780758642000,-151.0,0.00020491,2]
[424302708,1780758642000,-738.33,0.00020694,2]
[424302707,1780758642000,-651.52903792,0.000206,2]
[424302709,1780758642000,-1125.0,0.00020722,2]
[424302710,1780758642000,-651.52903792,0.000208,2]
[424302714,1780758642000,-2653.0,0.00021,2]
[424302713,1780758642000,-500.0,0.00020999,2]
[424302711,1780758642000,-363.77786367,0.0002085,2]
[424302712,1780758642000,-150.0,0.00020863,2]
[424302715,1780758642000,-453.0,0.00021,2]
[424302716,1780758642000,-472.9966208,0.00021,2]
[424302717,1780758642000,-431.0,0.00021,2]
[424302719,1780758642000,-560.0,0.00021,2]
[424302718,1780758642000,-2984.0,0.00021,2]
[424302720,1780758642000,-1747.0,0.00021,2]
[424302721,1780758642000,-408.0,0.00021,2]
[424302666,1780758642000,-151.0,0.00019395,2]
[424302695,1780758642000,-14184.8,0.0002,2]
[424302698,1780758642000,-200.0,0.00020352,2]
[424302706,1780758642000,-150.44842242,0.0002058,2]
[424302697,1780758642000,-651.52903792,0.000202,2]
[424302672,1780758642000,-1125.0,0.00019685,2]
[424302705,1780758642000,-150.0,0.0002058,2]
[424302682,1780758642000,-560.0,0.0002,2]
[424302673,1780758642000,-2000.0,0.0001978,7]
[424302674,1780758642000,-151.0,0.00019943,2]
[424302675,1780758642000,-200.0,0.00019943,2]
[424302678,1780758642000,-453.0,0.0002,2]
[424302680,1780758642000,-431.0,0.0002,2]
[424302677,1780758642000,-2653.0,0.0002,2]
[424302679,1780758642000,-651.52903792,0.0002,2]
[424302681,1780758642000,-2984.0,0.0002,2]
[424302684,1780758642000,-766.0,0.0002,2]
[424302676,1780758642000,-2405.55389863,0.00019943,2]
[424302686,1780758642000,-1317.0,0.0002,2]
[424302694,1780758642000,-4110.0,0.0002,2]
[424302687,1780758642000,-1576.68,0.0002,2]
[424302693,1780758642000,-2972.0,0.0002,2]
[424302690,1780758642000,-1092.0,0.0002,2]
[424302691,1780758642000,-675.0,0.0002,2]
[424302688,1780758642000,-1042.263907,0.0002,2]
[424302692,1780758642000,-400.0,0.0002,2]
[424302685,1780758642000,-408.0,0.0002,2]
[424302683,1780758642000,-1747.0,0.0002,2]
[424302689,1780758642000,-936.0,0.0002,2]
[424302762,1780758643000,-150.0,0.00021836,2]
[424302755,1780758643000,-472.9966208,0.000214,2]
[424302752,1780758643000,-1600.69,0.00021273,2]
[424302751,1780758643000,-28736.2,0.00021273,2]
[424302754,1780758643000,-1708.05,0.0002137,2]
[424302756,1780758643000,-151.0,0.00021587,2]
[424302753,1780758643000,-1000.0,0.00021367,2]
[424302757,1780758643000,-200.0,0.00021587,2]
[424302760,1780758643000,-14184.8,0.00021698,2]
[424302761,1780758643000,-1125.0,0.00021758,2]
[424302759,1780758643000,-472.9966208,0.000216,2]
[424302758,1780758643000,-2682.57183977,0.00021587,2]
[424302773,1780758643000,-150.0,0.00021836,2]
[424302763,1780758643000,-150.0,0.00021836,2]
[424302765,1780758643000,-150.0,0.00021836,2]
[424302767,1780758643000,-150.0,0.00021836,2]
[424302766,1780758643000,-150.0,0.00021836,2]
[424302769,1780758643000,-150.0,0.00021836,2]
[424302770,1780758643000,-150.0,0.00021836,2]
[424302772,1780758643000,-150.0,0.00021836,2]
[424302768,1780758643000,-150.0,0.00021836,2]
[424302771,1780758643000,-150.0,0.00021836,2]
[424302774,1780758643000,-3554.0,0.00021836,2]
[424302776,1780758643000,-1274.0,0.00021836,2]
[424302747,1780758643000,-500.0,0.00021205,2]
[424302764,1780758643000,-150.0,0.00021836,2]
[424302744,1780758643000,-2586.85809042,0.00021039,2]
[424302724,1780758643000,-6111.0,0.00021,2]
[424302745,1780758643000,-543.58357826,0.00021045,2]
[424302727,1780758643000,-15000.0,0.00021,2]
[424302726,1780758643000,-6111.0,0.00021,2]
[424302722,1780758643000,-1042.263907,0.00021,2]
[424302723,1780758643000,-15000.0,0.00021,2]
[424302725,1780758643000,-15000.0,0.00021,2]
[424302729,1780758643000,-15000.0,0.00021,2]
[424302728,1780758643000,-6111.0,0.00021,2]
[424302730,1780758643000,-6111.0,0.00021,2]
[424302732,1780758643000,-1093.96,0.00021,2]
[424302736,1780758643000,-2972.0,0.00021,2]
[424302735,1780758643000,-675.0,0.00021,2]
[424302734,1780758643000,-1092.0,0.00021,2]
[424302738,1780758643000,-948.0,0.00021,2]
[424302737,1780758643000,-4110.0,0.00021,2]
[424302733,1780758643000,-936.0,0.00021,2]
[424302731,1780758643000,-479.43,0.00021,7]
[424302777,1780758643000,-382.0,0.00021836,2]
[424302740,1780758643000,-3642.0,0.00021025,2]
[424302739,1780758643000,-7458.43741178,0.00021014,2]
[424302749,1780758643000,-4318.95,0.00021273,2]
[424302750,1780758643000,-39685.16,0.00021273,2]
[424302746,1780758643000,-472.9966208,0.000212,2]
[424302742,1780758643000,-151.0,0.00021039,2]
[424302743,1780758643000,-200.0,0.00021039,2]
[424302741,1780758643000,-419.0,0.00021025,2]
[424302748,1780758643000,-433.44,0.00021205,2]
[424302775,1780758643000,-1358.0,0.00021836,2]
[424302812,1780758643000,-1136.73,0.0002239,7]
[424302781,1780758643000,-361.97783376,0.00021909,2]
[424302818,1780758643000,-762.02338758,0.00022407,2]
[424302810,1780758643000,-180.0,0.0002234,2]
[424302813,1780758643000,-1221.2,0.0002239,7]
[424302811,1780758643000,-4204.8,0.00022353,2]
[424302807,1780758643000,-5000.0,0.00022295,2]
[424302814,1780758643000,-500.0,0.00022392,2]
[424302809,1780758643000,-5000.0,0.00022295,2]
[424302816,1780758643000,-762.02338758,0.00022407,2]
[424302817,1780758643000,-762.02338758,0.00022407,2]
[424302828,1780758643000,-2884.75459676,0.00022683,2]
[424302821,1780758643000,-292.100373,0.00022407,2]
[424302820,1780758643000,-292.100373,0.00022407,2]
[424302830,1780758643000,-1125.0,0.00022845,2]
[424302827,1780758643000,-200.0,0.00022683,2]
[424302829,1780758643000,-1093.96,0.000227,7]
[424302819,1780758643000,-292.100373,0.00022407,2]
[424302826,1780758643000,-151.0,0.00022683,2]
[424302822,1780758643000,-1279.61,0.00022466,2]
[424302824,1780758643000,-1525.66,0.00022466,2]
[424302823,1780758643000,-726.3,0.00022466,2]
[424302825,1780758643000,-168.33,0.00022603,2]
[424302831,1780758643000,-209.6698924,0.00022862,3]
[424302832,1780758643000,-400.0,0.0002297,2]
[424302833,1780758643000,-700.0,0.0002297,2]
[424302834,1780758643000,-400.0,0.0002297,2]
[424302815,1780758643000,-500.0,0.00022392,2]
[424302808,1780758643000,-5000.0,0.00022295,2]
[424302783,1780758643000,-500.0,0.00022,3]
[424302803,1780758643000,-2781.82699784,0.00022135,2]
[424302806,1780758643000,-5000.0,0.00022295,2]
[424302778,1780758643000,-1227.0,0.00021836,2]
[424302779,1780758643000,-298.5,0.00021893,2]
[424302780,1780758643000,-472.9966208,0.000219,2]
[424302782,1780758643000,-5000.0,0.00021918,2]
[424302784,1780758643000,-500.0,0.00022,3]
[424302787,1780758643000,-431.0,0.00022,2]
[424302785,1780758643000,-2653.0,0.00022,2]
[424302786,1780758643000,-453.0,0.00022,2]
[424302792,1780758643000,-1042.263907,0.00022,2]
[424302789,1780758643000,-560.0,0.00022,2]
[424302788,1780758643000,-2984.0,0.00022,2]
[424302793,1780758643000,-936.0,0.00022,2]
[424302791,1780758643000,-408.0,0.00022,2]
[424302790,1780758643000,-1747.0,0.00022,2]
[424302802,1780758643000,-200.0,0.00022135,2]
[424302804,1780758643000,-500.0,0.00022295,2]
[424302801,1780758643000,-151.0,0.00022135,2]
[424302799,1780758643000,-4110.0,0.00022,2]
[424302796,1780758643000,-675.0,0.00022,2]
[424302800,1780758643000,-948.0,0.00022,2]
[424302797,1780758643000,-450.0,0.00022,2]
[424302794,1780758643000,-3041.2,0.00022,2]
[424302805,1780758643000,-6952.99847296,0.00022295,2]
[424302795,1780758643000,-1092.0,0.00022,2]
[424302798,1780758643000,-2972.0,0.00022,2]
[424302871,1780758644000,-1068.53,0.00023734,7]
[424302873,1780758644000,-200.0,0.00023779,2]
[424302872,1780758644000,-1147.92,0.00023734,7]
[424302870,1780758644000,-251.0,0.00023734,7]
[424302859,1780758644000,-150.0,0.0002319,2]
[424302866,1780758644000,-167.96129714,0.00023351,2]
[424302861,1780758644000,-151.0,0.00023231,2]
[424302868,1780758644000,-167.96129715,0.00023694,2]
[424302864,1780758644000,-500.0,0.00023233,2]
[424302874,1780758644000,-150.0,0.00023863,2]
[424302869,1780758644000,-150.64131538,0.00023694,2]
[424302875,1780758644000,-158.16288389,0.00023987,2]
[424302884,1780758644000,-1042.263907,0.00024,2]
[424302879,1780758644000,-431.0,0.00024,2]
[424302876,1780758644000,-1125.0,0.00023988,2]
[424302878,1780758644000,-453.0,0.00024,2]
[424302888,1780758644000,-215.80795776,0.00024,7]
[424302881,1780758644000,-560.0,0.00024,2]
[424302880,1780758644000,-2984.0,0.00024,2]
[424302889,1780758644000,-500.0,0.00024,2]
[424302891,1780758644000,-4110.0,0.00024,2]
[424302890,1780758644000,-2972.0,0.00024,2]
[424302883,1780758644000,-408.0,0.00024,2]
[424302885,1780758644000,-936.0,0.00024,2]
[424302858,1780758644000,-300.0,0.000231,10]
[424302877,1780758644000,-2653.0,0.00024,2]
[424302860,1780758644000,-227.0,0.0002319,2]
[424302847,1780758644000,-200.0,0.00023,10]
[424302863,1780758644000,-2991.49051684,0.00023231,2]
[424302882,1780758644000,-1747.0,0.00024,2]
[424302841,1780758644000,-2984.0,0.00023,2]
[424302842,1780758644000,-560.0,0.00023,2]
[424302843,1780758644000,-1747.0,0.00023,2]
[424302835,1780758644000,-700.0,0.0002297,2]
[424302837,1780758644000,-700.0,0.0002297,2]
[424302836,1780758644000,-500.0,0.0002297,2]
[424302839,1780758644000,-453.0,0.00023,2]
[424302840,1780758644000,-431.0,0.00023,2]
[424302838,1780758644000,-2653.0,0.00023,2]
[424302845,1780758644000,-1366.0,0.00023,2]
[424302856,1780758644000,-1184.56,0.00023062,7]
[424302855,1780758644000,-1102.63,0.00023062,7]
[424302844,1780758644000,-408.0,0.00023,2]
[424302846,1780758644000,-1042.263907,0.00023,2]
[424302851,1780758644000,-2972.0,0.00023,2]
[424302848,1780758644000,-936.0,0.00023,2]
[424302850,1780758644000,-675.0,0.00023,2]
[424302849,1780758644000,-1092.0,0.00023,2]
[424302852,1780758644000,-4110.0,0.00023,2]
[424302853,1780758644000,-948.0,0.00023,2]
[424302854,1780758644000,-7458.43741178,0.0002303,2]
[424302857,1780758644000,-543.58357826,0.00023066,2]
[424302865,1780758644000,-179.83494619,0.00023319,3]
[424302862,1780758644000,-200.0,0.00023231,2]
[424302867,1780758644000,-14184.8,0.00023395,7]
[424302887,1780758644000,-675.0,0.00024,2]
[424302886,1780758644000,-1092.0,0.00024,2]
[424302948,1780758644000,-500.0,0.00024691,2]
[424302920,1780758644000,-500.0,0.00024691,2]
[424302933,1780758644000,-500.0,0.00024691,2]
[424302926,1780758644000,-500.0,0.00024691,2]
[424302928,1780758644000,-500.0,0.00024691,2]
[424302929,1780758644000,-500.0,0.00024691,2]
[424302925,1780758644000,-500.0,0.00024691,2]
[424302924,1780758644000,-500.0,0.00024691,2]
[424302931,1780758644000,-500.0,0.00024691,2]
[424302932,1780758644000,-500.0,0.00024691,2]
[424302930,1780758644000,-500.0,0.00024691,2]
[424302927,1780758644000,-500.0,0.00024691,2]
[424302935,1780758644000,-500.0,0.00024691,2]
[424302937,1780758644000,-500.0,0.00024691,2]
[424302936,1780758644000,-500.0,0.00024691,2]
[424302939,1780758644000,-500.0,0.00024691,2]
[424302941,1780758644000,-500.0,0.00024691,2]
[424302938,1780758644000,-500.0,0.00024691,2]
[424302940,1780758644000,-500.0,0.00024691,2]
[424302945,1780758644000,-500.0,0.00024691,2]
[424302942,1780758644000,-500.0,0.00024691,2]
[424302943,1780758644000,-500.0,0.00024691,2]
[424302944,1780758644000,-500.0,0.00024691,2]
[424302947,1780758644000,-500.0,0.00024691,2]
[424302946,1780758644000,-500.0,0.00024691,2]
[424302892,1780758644000,-948.0,0.00024,2]
[424302919,1780758644000,-500.0,0.00024691,2]
[424302918,1780758644000,-500.0,0.00024691,2]
[424302934,1780758644000,-500.0,0.00024691,2]
[424302922,1780758644000,-500.0,0.00024691,2]
[424302916,1780758644000,-500.0,0.00024691,2]
[424302894,1780758644000,-419.0,0.00024025,2]
[424302895,1780758644000,-187.50667371,0.00024137,2]
[424302897,1780758644000,-423.33,0.00024174,2]
[424302901,1780758644000,-229.5707254,0.00024357,2]
[424302902,1780758644000,-1199.0,0.00024364,2]
[424302900,1780758644000,-200.0,0.00024327,2]
[424302896,1780758644000,-200.0,0.00024138,2]
[424302899,1780758644000,-4204.8,0.00024324,2]
[424302898,1780758644000,-200.0,0.00024299,2]
[424302903,1780758644000,-1093.96,0.000246,7]
[424302906,1780758644000,-1000.0,0.00024658,2]
[424302905,1780758644000,-1111.29,0.0002463,7]
[424302893,1780758644000,-3642.0,0.00024025,2]
[424302908,1780758644000,-500.0,0.00024691,2]
[424302904,1780758644000,-1034.43,0.0002463,7]
[424302917,1780758644000,-500.0,0.00024691,2]
[424302921,1780758644000,-500.0,0.00024691,2]
[424302915,1780758644000,-500.0,0.00024691,2]
[424302913,1780758644000,-500.0,0.00024691,2]
[424302914,1780758644000,-500.0,0.00024691,2]
[424302923,1780758644000,-500.0,0.00024691,2]
[424302909,1780758644000,-500.0,0.00024691,2]
[424302911,1780758644000,-500.0,0.00024691,2]
[424302910,1780758644000,-500.0,0.00024691,2]
[424302907,1780758644000,-1048.42,0.00024658,2]
[424302912,1780758644000,-500.0,0.00024691,2]
[424302985,1780758645000,-500.0,0.00024691,2]
[424302983,1780758645000,-500.0,0.00024691,2]
[424302986,1780758645000,-500.0,0.00024691,2]
[424302975,1780758645000,-500.0,0.00024691,2]
[424302992,1780758645000,-3041.2,0.00024779,7]
[424302982,1780758645000,-500.0,0.00024691,2]
[424302984,1780758645000,-500.0,0.00024691,2]
[424302981,1780758645000,-500.0,0.00024691,2]
[424302976,1780758645000,-500.0,0.00024691,2]
[424302988,1780758645000,-500.0,0.00024691,2]
[424302987,1780758645000,-500.0,0.00024691,2]
[424302991,1780758645000,-40101.7167408,0.00024692,2]
[424302996,1780758645000,-150.0,0.00024836,2]
[424302993,1780758645000,-150.0,0.00024836,2]
[424302990,1780758645000,-3797.1984631,0.00024692,2]
[424302995,1780758645000,-150.0,0.00024836,2]
[424303006,1780758645000,-382.0,0.00024836,2]
[424303005,1780758645000,-1274.0,0.00024836,2]
[424302994,1780758645000,-150.0,0.00024836,2]
[424303001,1780758645000,-150.0,0.00024836,2]
[424303003,1780758645000,-3554.0,0.00024836,2]
[424302997,1780758645000,-150.0,0.00024836,2]
[424303004,1780758645000,-1358.0,0.00024836,2]
[424303000,1780758645000,-150.0,0.00024836,2]
[424302978,1780758645000,-500.0,0.00024691,2]
[424302989,1780758645000,-193027.3402192,0.00024692,2]
[424302974,1780758645000,-500.0,0.00024691,2]
[424302999,1780758645000,-150.0,0.00024836,2]
[424302977,1780758645000,-500.0,0.00024691,2]
[424302956,1780758645000,-500.0,0.00024691,2]
[424302957,1780758645000,-500.0,0.00024691,2]
[424302955,1780758645000,-500.0,0.00024691,2]
[424302953,1780758645000,-500.0,0.00024691,2]
[424302954,1780758645000,-500.0,0.00024691,2]
[424302949,1780758645000,-500.0,0.00024691,2]
[424302951,1780758645000,-500.0,0.00024691,2]
[424302950,1780758645000,-500.0,0.00024691,2]
[424302952,1780758645000,-500.0,0.00024691,2]
[424302959,1780758645000,-500.0,0.00024691,2]
[424302967,1780758645000,-500.0,0.00024691,2]
[424302968,1780758645000,-500.0,0.00024691,2]
[424302979,1780758645000,-500.0,0.00024691,2]
[424302958,1780758645000,-500.0,0.00024691,2]
[424302961,1780758645000,-500.0,0.00024691,2]
[424302966,1780758645000,-500.0,0.00024691,2]
[424302960,1780758645000,-500.0,0.00024691,2]
[424302962,1780758645000,-500.0,0.00024691,2]
[424302964,1780758645000,-500.0,0.00024691,2]
[424302963,1780758645000,-500.0,0.00024691,2]
[424302970,1780758645000,-500.0,0.00024691,2]
[424302980,1780758645000,-500.0,0.00024691,2]
[424302971,1780758645000,-500.0,0.00024691,2]
[424302969,1780758645000,-500.0,0.00024691,2]
[424302973,1780758645000,-500.0,0.00024691,2]
[424302972,1780758645000,-500.0,0.00024691,2]
[424302965,1780758645000,-500.0,0.00024691,2]
[424303002,1780758645000,-150.0,0.00024836,2]
[424303060,1780758645000,-209.40437684,0.00025609,2]
[424303008,1780758645000,-200.0,0.00024875,2]
[424303039,1780758645000,-500.0,0.00025193,2]
[424303033,1780758645000,-200.0,0.00025073,2]
[424303041,1780758645000,-200.0,0.00025423,2]
[424303043,1780758645000,-1000.0,0.00025609,2]
[424303044,1780758645000,-1000.0,0.00025609,2]
[424303045,1780758645000,-693.39197629,0.00025609,2]
[424303042,1780758645000,-209.40437684,0.00025609,2]
[424303048,1780758645000,-1000.0,0.00025609,2]
[424303046,1780758645000,-1000.0,0.00025609,2]
[424303047,1780758645000,-1000.0,0.00025609,2]
[424303052,1780758645000,-1000.0,0.00025609,2]
[424303049,1780758645000,-1030.0,0.00025609,2]
[424303051,1780758645000,-151.0,0.00025609,2]
[424303053,1780758645000,-1068.11,0.00025609,2]
[424303058,1780758645000,-1148.61238259,0.00025609,2]
[424303055,1780758645000,-156.587,0.00025609,2]
[424303059,1780758645000,-1000.0,0.00025609,2]
[424303057,1780758645000,-1107.63007,0.00025609,2]
[424303056,1780758645000,-1000.0,0.00025609,2]
[424303054,1780758645000,-1000.0,0.00025609,2]
[424303061,1780758645000,-200.08318283,0.00025609,2]
[424303062,1780758645000,-1191.11104074,0.00025609,2]
[424303063,1780758645000,-1000.0,0.00025609,2]
[424303064,1780758645000,-1235.18214925,0.00025609,2]
[424303007,1780758645000,-1227.0,0.00024836,2]
[424303038,1780758645000,-500.0,0.00025193,2]
[424303034,1780758645000,-543.58357826,0.00025087,2]
[424303050,1780758645000,-151.0,0.00025609,2]
[424303036,1780758645000,-56147.0,0.000251,2]
[424303015,1780758645000,-427.35551753,0.00025,2]
[424303037,1780758645000,-1125.0,0.00025187,2]
[424303009,1780758645000,-2659.0,0.00025,2]
[424303013,1780758645000,-574.0,0.00025,2]
[424303016,1780758645000,-942.8986884,0.00025,2]
[424303017,1780758645000,-1109.47162442,0.00025,2]
[424303014,1780758645000,-1754.35310846,0.00025,2]
[424303011,1780758645000,-446.0,0.00025,2]
[424303012,1780758645000,-2986.0,0.00025,2]
[424303026,1780758645000,-439.12,0.00025,2]
[424303018,1780758645000,-692.50525579,0.00025,2]
[424303019,1780758645000,-2980.79991138,0.00025,2]
[424303027,1780758645000,-439.12,0.00025,2]
[424303010,1780758645000,-467.0,0.00025,2]
[424303032,1780758645000,-7458.43741178,0.00025046,2]
[424303040,1780758645000,-718.0,0.00025207,10]